bitfinex/quotes_BTCUSD_20251208
["timestamp","ask_amount","ask_price","bid_price","bid_amount"]
[1765154606747,0.79003961,90479.0,90478.0,0.00411702]
[1765154606945,0.92682761,90479.0,90478.0,0.00411702]
[1765154607365,0.79003961,90479.0,90478.0,0.00411702]
[1765154607730,0.80751961,90479.0,90478.0,0.00411702]
[1765154608972,0.48451961,90479.0,90478.0,0.00411702]
[1765154609162,0.58576867,90479.0,90478.0,0.00411702]
[1765154609282,0.48451961,90479.0,90478.0,0.00411702]
[1765154609750,0.42911863,90479.0,90478.0,0.00411702]
[1765154609981,0.41163863,90479.0,90478.0,0.00411702]
[1765154610715,0.38563863,90479.0,90478.0,0.00111702]
[1765154610914,0.40383462,90479.0,90478.0,0.00311702]
[1765154611251,0.41183462,90479.0,90478.0,0.00411702]
[1765154613952,0.38963863,90479.0,90478.0,0.00411702]
[1765154614158,0.50648256,90479.0,90478.0,0.00411702]
[1765154614357,0.82948256,90479.0,90478.0,0.00411702]
[1765154614554,0.86268884,90479.0,90478.0,0.00411702]
[1765154618467,0.7680409,90479.0,90478.0,0.00411702]
[1765154619715,1.5271659,90479.0,90478.0,0.00411702]
[1765154622147,1.0694679,90479.0,90478.0,0.00411702]
[1765154622387,1.0524569,90479.0,90478.0,0.00411702]
[1765154623023,0.8796729,90479.0,90478.0,0.00411702]
[1765154623212,0.98295796,90479.0,90478.0,0.00411702]
[1765154623804,0.87774596,90479.0,90478.0,0.00411702]
[1765154624284,0.89522596,90479.0,90478.0,0.00411702]
[1765154625202,0.42931462,90479.0,90478.0,0.00411702]
[1765154626183,0.40711863,90479.0,90478.0,0.00411702]
[1765154626383,0.42931462,90479.0,90478.0,0.00411702]
[1765154627181,0.40711863,90479.0,90478.0,0.00411702]
[1765154628392,0.42931462,90479.0,90478.0,0.00411702]
[1765154628628,0.85028756,90479.0,90478.0,0.00411702]
[1765154630859,2.22351374,90479.0,90478.0,0.00411702]
[1765154633515,0.22111419,90451.0,90450.0,0.01532374]
[1765154633658,0.26124141,90451.0,90450.0,0.01532374]
[1765154633871,0.34902141,90451.0,90450.0,0.01532374]
[1765154634713,0.35302141,90451.0,90450.0,0.01732374]
[1765154635331,0.34902141,90451.0,90450.0,0.01532374]
[1765154635911,0.36102141,90451.0,90450.0,0.01832374]
[1765154636267,0.68402141,90451.0,90450.0,0.01832374]
[1765154636474,0.79872647,90451.0,90450.0,0.01932374]
[1765154637079,0.81305021,90451.0,90450.0,0.01832374]
[1765154637497,0.82205021,90451.0,90450.0,0.01932374]
[1765154638381,1.60643921,90451.0,90450.0,0.01932374]
[1765154640322,0.01105791,90433.0,90394.0,0.03973148]
[1765154640526,0.22121202,90411.0,90388.0,0.01106341]
[1765154640743,0.33529202,90411.0,90389.0,0.01106329]
[1765154640919,0.35748801,90411.0,90390.0,0.22126275]
[1765154641297,0.35748801,90411.0,90390.0,0.01106317]
[1765154641496,0.35748801,90411.0,90391.0,0.01106304]
[1765154641734,0.35748801,90411.0,90390.0,0.01106317]
[1765154641941,0.36548801,90411.0,90410.0,0.0034]
[1765154643272,0.37248801,90411.0,90410.0,0.0034]
[1765154643974,0.37410088,90411.0,90410.0,0.0034]
[1765154644174,0.50083717,90411.0,90410.0,0.0034]
[1765154645731,2.88636016,90411.0,90410.0,0.0034]
[1765154646137,2.88636016,90411.0,90410.0,0.0045907]
[1765154646581,2.71194416,90411.0,90410.0,0.0045907]
[1765154646894,2.55830116,90411.0,90410.0,0.0045907]
[1765154647255,2.34152716,90411.0,90410.0,0.0045907]
[1765154647862,2.32506416,90411.0,90410.0,0.0045907]
[1765154648057,2.21598916,90411.0,90410.0,0.0045907]
[1765154648283,2.17483716,90411.0,90410.0,0.0045907]
[1765154648481,0.96761617,90411.0,90410.0,0.0045907]
[1765154650592,0.97868044,90411.0,90410.0,0.0045907]
[1765154653776,0.97868044,90411.0,90410.0,0.00498241]
[1765154655620,0.80988439,90411.0,90410.0,0.00498241]
[1765154655822,0.72523638,90411.0,90410.0,0.00498241]
[1765154655990,0.82827338,90411.0,90410.0,0.00498241]
[1765154656387,0.72523638,90411.0,90410.0,0.00498241]
[1765154656612,0.36897612,90411.0,90410.0,0.00498241]
[1765154656812,0.39117211,90411.0,90410.0,0.00498241]
[1765154659459,0.82387717,90411.0,90410.0,0.00498241]
[1765154661648,0.69197612,90411.0,90410.0,0.00498241]
[1765154661851,0.71417211,90411.0,90410.0,0.00498241]
[1765154665403,0.69665211,90411.0,90410.0,0.00498241]
[1765154665570,0.71417211,90411.0,90410.0,0.00498241]
[1765154665992,0.36897612,90411.0,90410.0,0.00498241]
[1765154666605,0.28270612,90411.0,90410.0,0.00498241]
[1765154666805,0.36040612,90411.0,90410.0,0.00498241]
[1765154667452,0.1321941,90411.0,90410.0,0.00498241]
[1765154667882,0.1371941,90411.0,90410.0,0.00498241]
[1765154668203,0.12758123,90411.0,90410.0,0.00198241]
[1765154668558,0.13258123,90411.0,90410.0,0.00198241]
[1765154669188,0.21867201,90411.0,90410.0,0.00198241]
[1765154670384,0.05488123,90411.0,90410.0,0.00198241]
[1765154670536,0.04455123,90411.0,90410.0,0.00198241]
[1765154670739,0.09082123,90411.0,90410.0,0.00198241]
[1765154670940,0.16820123,90411.0,90410.0,0.00198241]
[1765154673949,0.19039722,90411.0,90410.0,0.00198241]
[1765154677206,0.28388247,90411.0,90410.0,0.00198241]
[1765154678365,0.60688247,90411.0,90410.0,0.00198241]
[1765154680054,1.65484547,90411.0,90410.0,0.00198241]
[1765154680269,1.71736846,90411.0,90410.0,0.00198241]
[1765154680485,1.75708879,90411.0,90410.0,0.00198241]
[1765154680893,1.75208879,90411.0,90410.0,0.00198241]
[1765154681288,1.71636846,90411.0,90410.0,0.00198241]
[1765154681468,1.71236846,90411.0,90410.0,0.00198241]
[1765154681668,1.71936846,90411.0,90410.0,0.00198241]
[1765154682121,1.72636846,90411.0,90410.0,0.00198241]
[1765154682469,1.7470275,90411.0,90410.0,0.00198241]
[1765154682909,1.7650275,90411.0,90410.0,0.00198241]
[1765154684201,1.7560275,90411.0,90410.0,0.00198241]
[1765154684382,1.71636846,90411.0,90410.0,0.00198241]
[1765154684567,1.72936846,90411.0,90410.0,0.00198241]
[1765154684763,1.71636846,90411.0,90410.0,1e-08]
[1765154684997,1.72536846,90411.0,90410.0,1e-08]
[1765154687502,1.73643456,90411.0,90410.0,1e-08]
[1765154688132,1.79590133,90411.0,90410.0,1e-08]
[1765154688841,1.73643456,90411.0,90410.0,1e-08]
[1765154690217,1.63419558,90411.0,90410.0,1e-08]
[1765154690379,0.97843357,90411.0,90410.0,1e-08]
[1765154690581,1.04095656,90411.0,90410.0,1e-08]
[1765154701241,1.08058193,90411.0,90410.0,1e-08]
[1765154701443,1.06306193,90411.0,90410.0,1e-08]
[1765154701838,0.88656119,90411.0,90410.0,1e-08]
[1765154703296,0.91627847,90411.0,90410.0,1e-08]
[1765154704481,0.88656119,90411.0,90410.0,1e-08]
[1765154705306,0.94908418,90411.0,90410.0,1e-08]
[1765154705951,1.00855095,90411.0,90410.0,1e-08]
[1765154706162,1.11825601,90411.0,90410.0,1e-08]
[1765154706369,1.05878924,90411.0,90410.0,1e-08]
[1765154715440,0.93156418,90411.0,90410.0,1e-08]
[1765154715638,0.88656119,90411.0,90410.0,1e-08]
[1765154715875,0.56356119,90411.0,90410.0,1e-08]
[1765154716296,0.88656119,90411.0,90410.0,1e-08]
[1765154716709,0.60335639,90411.0,90410.0,1e-08]
[1765154716923,0.63655326,90411.0,90410.0,1e-08]
[1765154717081,0.67634846,90411.0,90410.0,1e-08]
[1765154717283,0.63655326,90411.0,90410.0,1e-08]
[1765154717528,0.95955326,90411.0,90410.0,1e-08]
[1765154719156,0.989394,90411.0,90410.0,1e-08]
[1765154719727,0.5118802,90411.0,90410.0,1e-08]
[1765154720041,0.1778141,90411.0,90410.0,1e-08]
[1765154720559,0.19101009,90411.0,90410.0,1e-08]
[1765154720961,0.19001009,90411.0,90410.0,1e-08]
[1765154721179,0.19401009,90411.0,90410.0,1e-08]
[1765154721553,0.21811602,90411.0,90410.0,1e-08]
[1765154721760,0.22211602,90411.0,90410.0,1e-08]
[1765154722378,0.21411602,90411.0,90410.0,1e-08]
[1765154722786,0.22011602,90411.0,90410.0,1e-08]
[1765154723726,0.19201009,90411.0,90410.0,1e-08]
[1765154725571,1.78576608,90411.0,90410.0,1e-08]
[1765154725916,1.63751308,90411.0,90410.0,1e-08]
[1765154726070,1.67074669,90411.0,90410.0,1e-08]
[1765154726641,1.66074669,90411.0,90410.0,1e-08]
[1765154726791,1.77745175,90411.0,90410.0,1e-08]
[1765154726997,1.82624695,90411.0,90410.0,1e-08]
[1765154731905,1.78645175,90411.0,90410.0,1e-08]
[1765154733162,1.77045175,90411.0,90410.0,1e-08]
[1765154733574,1.78545175,90411.0,90410.0,1e-08]
[1765154735132,1.79445175,90411.0,90410.0,1e-08]
[1765154736193,1.87901604,90411.0,90410.0,1e-08]
[1765154738144,1.87001604,90411.0,90410.0,1e-08]
[1765154738313,1.85501604,90411.0,90410.0,1e-08]
[1765154738511,1.86501604,90411.0,90410.0,1e-08]
[1765154738749,1.88301604,90411.0,90410.0,1e-08]
[1765154744621,1.88301604,90411.0,90350.0,0.0004]
[1765154744622,2.40771898,90381.0,90350.0,0.0004]
[1765154744829,0.24353041,90361.0,90350.0,0.0004]
[1765154745031,0.29313041,90361.0,90350.0,0.0004]
[1765154745236,0.36149041,90361.0,90350.0,0.0004]
[1765154745650,1.37899147,90361.0,90350.0,0.0004]
[1765154745979,1.48261867,90361.0,90350.0,0.0004]
[1765154746184,1.52236753,90361.0,90350.0,0.0004]
[1765154746367,0.6290779,90351.0,90350.0,0.0004]
[1765154746564,0.72771073,90351.0,90350.0,0.0004]
[1765154746701,0.79607073,90351.0,90350.0,0.0004]
[1765154746904,0.68123491,90351.0,90350.0,0.0004]
[1765154747106,0.69875491,90351.0,90350.0,0.0004]
[1765154748356,0.70475491,90351.0,90350.0,0.0004]
[1765154748557,0.69584778,90351.0,90350.0,0.0004]
[1765154748828,0.77589077,90351.0,90350.0,0.0004]
[1765154749041,0.88559583,90351.0,90350.0,0.0004]
[1765154749613,0.77589077,90351.0,90350.0,0.0004]
[1765154750119,0.76989077,90351.0,90350.0,0.0004]
[1765154750516,0.70736778,90351.0,90350.0,0.00218764]
[1765154750865,0.71736778,90351.0,90350.0,0.00218764]
[1765154751067,0.71036778,90351.0,90350.0,0.00218764]
[1765154751281,0.81607284,90351.0,90350.0,0.00218764]
[1765154751436,0.83196155,90351.0,90350.0,0.00218764]
[1765154751874,0.83996155,90351.0,90350.0,0.00218764]
[1765154753292,0.83396155,90351.0,90350.0,0.00218764]
[1765154753494,0.84096155,90351.0,90350.0,0.00218764]
[1765154754073,0.83296155,90351.0,90350.0,0.00218764]
[1765154754470,0.84296155,90351.0,90350.0,0.00218764]
[1765154755315,1.91664854,90351.0,90350.0,0.00218764]
[1765154757231,1.72764754,90351.0,90350.0,0.00218764]
[1765154761485,1.72764754,90351.0,90350.0,1e-08]
[1765154761707,1.7673964,90351.0,90350.0,1e-08]
[1765154761886,1.72764754,90351.0,90350.0,1e-08]
[1765154762208,1.72064754,90351.0,90350.0,1e-08]
[1765154762608,1.72864754,90351.0,90350.0,1e-08]
[1765154763012,1.72064754,90351.0,90350.0,1e-08]
[1765154763219,1.72064754,90351.0,90321.0,4.008e-05]
[1765154763220,1.71064754,90351.0,90321.0,4.008e-05]
[1765154763478,2.63265392,90331.0,90330.0,1e-08]
[1765154763637,2.71269691,90331.0,90330.0,1e-08]
[1765154763840,2.8093273,90331.0,90330.0,1e-08]
[1765154764089,2.84412013,90331.0,90330.0,1e-08]
[1765154764307,2.86163057,90331.0,90330.0,1e-08]
[1765154764732,2.87963057,90331.0,90330.0,1e-08]
[1765154765367,3.24015792,90331.0,90330.0,1e-08]
[1765154765599,3.25767792,90331.0,90330.0,1e-08]
[1765154765824,3.22801709,90331.0,90330.0,1e-08]
[1765154766059,3.23245322,90331.0,90330.0,1e-08]
[1765154766499,3.24245322,90331.0,90330.0,1e-08]
[1765154766731,3.30995445,90331.0,90330.0,1e-08]
[1765154766979,3.32747445,90331.0,90330.0,1e-08]
[1765154767591,3.30995445,90331.0,90330.0,1e-08]
[1765154768000,3.32747445,90331.0,90330.0,1e-08]
[1765154769495,3.30995445,90331.0,90330.0,1e-08]
[1765154769697,3.32747445,90331.0,90330.0,1e-08]
[1765154770889,3.30995445,90331.0,90330.0,1e-08]
[1765154771097,2.80530862,90331.0,90330.0,1e-08]
[1765154771302,2.82282862,90331.0,90330.0,1e-08]
[1765154771517,2.80530862,90331.0,90330.0,1e-08]
[1765154771723,2.82282862,90331.0,90330.0,1e-08]
[1765154771927,2.80530862,90331.0,90330.0,1e-08]
[1765154772133,2.91501368,90331.0,90330.0,1e-08]
[1765154772341,2.93253368,90331.0,90330.0,1e-08]
[1765154773432,2.97209421,90331.0,90330.0,1e-08]
[1765154773635,2.90072221,90331.0,90330.0,1e-08]
[1765154773783,2.84364168,90331.0,90330.0,1e-08]
[1765154773992,2.86116168,90331.0,90330.0,1e-08]
[1765154774945,1.09033311,90331.0,90330.0,1e-08]
[1765154775341,1.14538046,90331.0,90330.0,1e-08]
[1765154775577,1.49813296,90331.0,90330.0,1e-08]
[1765154775813,1.41167546,90331.0,90330.0,1e-08]
[1765154775992,1.37081546,90331.0,90330.0,1e-08]
[1765154776353,1.40056796,90331.0,90330.0,1e-08]
[1765154776574,1.37256796,90331.0,90330.0,1e-08]
[1765154776777,1.19062218,90331.0,90330.0,1e-08]
[1765154777193,0.97576811,90331.0,90330.0,1e-08]
[1765154777368,0.93905411,90331.0,90330.0,1e-08]
[1765154777572,0.84227511,90331.0,90330.0,1e-08]
[1765154777768,0.95792211,90331.0,90330.0,1e-08]
[1765154777974,0.95392211,90331.0,90330.0,1e-08]
[1765154778398,0.95792211,90331.0,90330.0,1e-08]
[1765154778928,1.19077618,90331.0,90330.0,1e-08]
[1765154780361,1.22052868,90331.0,90330.0,1e-08]
[1765154781287,0.86277356,90331.0,90330.0,1e-08]
[1765154781489,0.74699899,90331.0,90330.0,1e-08]
[1765154781921,1.06999899,90331.0,90330.0,1e-08]
[1765154783869,0.73513392,90331.0,90330.0,1e-08]
[1765154784207,0.38993793,90331.0,90330.0,1e-08]
[1765154785040,0.38293793,90331.0,90330.0,1e-08]
[1765154785264,0.31997793,90331.0,90330.0,1e-08]
[1765154785612,0.37351793,90331.0,90330.0,1e-08]
[1765154785822,0.37651793,90331.0,90330.0,0.00300001]
[1765154786064,0.37351793,90331.0,90330.0,1e-08]
[1765154786263,0.30897793,90331.0,90330.0,1e-08]
[1765154786469,0.31397793,90331.0,90330.0,0.00300001]
[1765154787385,0.30997793,90331.0,90330.0,0.00300001]
[1765154787589,0.008,90331.0,90330.0,0.00300001]
[1765154788133,0.008,90331.0,90330.0,0.04631001]
[1765154788613,0.008,90331.0,90330.0,0.00300001]
[1765154789270,0.008,90331.0,90330.0,5.00300001]
[1765154794036,0.008,90331.0,90330.0,5.26772039]
[1765154794206,0.008,90331.0,90330.0,5.33670039]
[1765154795506,0.008,90331.0,90330.0,5.35890039]
[1765154796248,0.003,90331.0,90330.0,5.35590039]
[1765154796454,0.0110677,90353.0,90348.0,0.01106831]
[1765154796656,0.03238,90357.0,90352.0,0.03586782]
[1765154796862,0.01106733,90356.0,90352.0,0.07917782]
[1765154797051,0.22134142,90359.0,90352.0,0.2894659]
[1765154797257,0.01106696,90359.0,90354.0,0.23241822]
[1765154797611,0.01106684,90360.0,90356.0,0.01106733]
[1765154797791,0.01106684,90360.0,90357.0,0.01106721]
[1765154798110,0.01106647,90363.0,90359.0,0.01106696]
[1765154798311,0.01703123,90364.0,90360.0,0.01106684]
[1765154798564,0.01106647,90363.0,90360.0,0.01106684]
[1765154798760,0.01106647,90363.0,90359.0,0.01106696]
[1765154798945,0.01106659,90362.0,90359.0,0.01106696]
[1765154799147,0.01106647,90363.0,90359.0,0.01106696]
[1765154799353,0.01506647,90363.0,90362.0,0.02208]
[1765154799660,0.01106647,90363.0,90362.0,0.02208]
[1765154799785,0.01406647,90363.0,90362.0,0.02208]
[1765154799980,0.01703123,90364.0,90362.0,0.02208]
[1765154800186,0.01106574,90369.0,90360.0,0.23240352]
[1765154800187,0.001,90363.0,90361.0,0.01106672]
[1765154800392,0.23339837,90363.0,90359.0,0.00139184]
[1765154800811,0.01106647,90363.0,90359.0,0.23279778]
[1765154801156,0.004,90364.0,90362.0,0.06539]
[1765154801332,0.004,90364.0,90363.0,0.28215952]
[1765154801533,0.004,90364.0,90363.0,0.35113952]
[1765154801941,0.01106463,90378.0,90374.0,0.01106512]
[1765154802357,0.01106476,90377.0,90375.0,0.0178]
[1765154802556,0.01106463,90378.0,90375.0,0.0178]
[1765154802759,0.31725661,90385.0,90375.0,0.0178]
[1765154802760,0.25365782,90385.0,90377.0,0.22129524]
[1765154802945,0.01106402,90383.0,90379.0,0.01106451]
[1765154803142,0.23234598,90383.0,90379.0,0.01106451]
[1765154803529,0.03238,90385.0,90382.0,0.23234697]
[1765154803736,0.01106341,90388.0,90382.0,0.01106414]
[1765154803934,0.0110639,90384.0,90378.0,0.22129068]
[1765154804172,0.001,90385.0,90384.0,0.2212781]
[1765154804327,0.23232143,90392.0,90388.0,0.01106341]
[1765154804530,0.26469118,90396.0,90391.0,0.01106304]
[1765154804747,0.23231656,90394.0,90390.0,0.01106317]
[1765154804968,0.01106268,90394.0,90390.0,0.01106317]
[1765154805171,0.01106268,90394.0,90388.0,0.01106341]
[1765154805172,0.01106304,90391.0,90388.0,0.01106341]
[1765154805464,0.03306292,90392.0,90388.0,0.01506341]
[1765154805666,0.01106292,90392.0,90389.0,0.01106329]
[1765154806187,0.22126096,90391.0,90390.0,0.004]
[1765154806393,0.01106378,90385.0,90382.0,0.002]
[1765154806737,0.0110639,90384.0,90381.0,0.01106427]
[1765154806947,0.0110639,90384.0,90381.0,0.01114667]
[1765154807124,0.01106378,90385.0,90382.0,0.01106414]
[1765154807387,0.01106317,90390.0,90386.0,0.23233679]
[1765154807585,0.0110628,90393.0,90389.0,0.05484329]
[1765154807703,0.022,90392.0,90389.0,0.05484329]
[1765154807917,0.022,90392.0,90389.0,0.04378]
[1765154807918,0.01106292,90392.0,90389.0,0.04378]
[1765154808138,0.01106255,90395.0,90382.0,0.22328278]
[1765154808139,0.01106353,90387.0,90382.0,0.01306414]
[1765154808378,0.004,90385.0,90382.0,0.23434635]
[1765154808638,0.23233465,90387.0,90383.0,0.01106402]
[1765154808639,0.01106366,90386.0,90383.0,0.01106402]
[1765154808824,0.26501113,90383.0,90370.0,0.01106561]
[1765154809036,0.07828123,90382.0,90356.0,0.02208]
[1765154809235,0.07828123,90382.0,90357.0,0.251903]
[1765154809236,0.16569009,90382.0,90357.0,0.251903]
[1765154809539,0.1434941,90382.0,90372.0,0.02208]
[1765154809740,0.1434941,90382.0,90366.0,0.02208]
[1765154809899,0.16569009,90382.0,90366.0,0.02208]
[1765154810464,0.16569009,90382.0,90367.0,0.01106598]
[1765154810664,0.16569009,90382.0,90366.0,0.02208]
[1765154810960,0.17069009,90382.0,90381.0,0.0150824]
[1765154811172,0.17069009,90382.0,90381.0,8.24e-05]
[1765154811534,0.19269009,90382.0,90381.0,0.0040824]
[1765154811957,0.1704941,90382.0,90381.0,0.0040824]
[1765154812134,0.0631641,90382.0,90381.0,0.0040824]
[1765154812334,0.19269009,90382.0,90381.0,0.0040824]
[1765154816305,0.28711095,90382.0,90381.0,0.0040824]
[1765154817548,0.26491496,90382.0,90381.0,0.0040824]
[1765154817691,0.19269009,90382.0,90381.0,0.0040824]
[1765154820630,0.51569009,90382.0,90381.0,0.0040824]
[1765154820836,1.54412008,90382.0,90381.0,1e-08]
[1765154822174,1.53912008,90382.0,90381.0,1e-08]
[1765154822379,1.58777423,90382.0,90381.0,1e-08]
[1765154822574,1.65782514,90382.0,90381.0,1e-08]
[1765154822815,1.64882514,90382.0,90381.0,1e-08]
[1765154823006,0.01106868,90345.0,90343.0,0.02168]
[1765154823186,0.22137607,90344.0,90343.0,0.02207184]
[1765154824159,0.01106868,90345.0,90343.0,0.02207184]
[1765154824370,0.01106757,90354.0,90349.0,0.01106819]
[1765154824604,0.01106733,90356.0,90353.0,0.0178]
[1765154824845,0.01106733,90356.0,90354.0,0.01584969]
[1765154824976,0.01106733,90356.0,90353.0,0.05891]
[1765154825321,0.13473629,90382.0,90364.0,0.01106635]
[1765154825322,0.01106586,90368.0,90364.0,0.01106635]
[1765154825647,0.01106635,90364.0,90356.0,0.01583884]
[1765154825766,0.01106696,90359.0,90354.0,0.01106757]
[1765154825970,0.01106708,90358.0,90354.0,0.01106757]
[1765154826165,0.23240893,90358.0,90354.0,0.01106757]
[1765154826416,0.004,90356.0,90354.0,0.01106757]
[1765154826623,0.004,90356.0,90354.0,0.23241686]
[1765154826818,0.01106696,90359.0,90356.0,0.01106733]
[1765154827049,0.01106721,90357.0,90354.0,0.01106757]
[1765154827637,0.01106672,90361.0,90354.0,0.01106757]
[1765154827638,0.01106672,90361.0,90357.0,0.01106721]
[1765154827842,0.01106659,90362.0,90356.0,0.25429174]
[1765154828045,0.01106696,90359.0,90356.0,0.02188]
[1765154828346,0.003,90358.0,90356.0,0.02188]
[1765154828549,0.003,90358.0,90357.0,0.22134422]
[1765154828755,0.01106672,90361.0,90358.0,0.01106708]
[1765154829054,0.2333996,90362.0,90358.0,0.01106708]
[1765154829294,0.001,90362.0,90359.0,0.01106696]
[1765154829465,0.23239884,90362.0,90359.0,0.01106696]
[1765154829796,0.01106721,90357.0,90353.0,0.0110677]
[1765154829914,0.01106721,90357.0,90354.0,0.01106757]
[1765154830112,0.001,90358.0,90355.0,0.23241657]
[1765154830531,0.001,90358.0,90355.0,0.01106745]
[1765154830738,0.001,90358.0,90355.0,0.23241524]
[1765154831149,0.001,90358.0,90356.0,0.22134441]
[1765154831574,0.01106684,90360.0,90357.0,0.01106721]
[1765154832480,0.01106672,90361.0,90357.0,0.23241123]
[1765154832792,0.001,90360.0,90358.0,0.01106708]
[1765154833320,0.001,90360.0,90358.0,0.23240653]
[1765154833576,0.001,90360.0,90359.0,0.06329393]
[1765154833772,0.001,90360.0,90359.0,0.10025]
[1765154833977,0.001,90360.0,90359.0,0.11608755]
[1765154834375,0.22128478,90382.0,90359.0,0.11608755]
[1765154834376,0.01106427,90381.0,90375.0,0.23236501]
[1765154834690,0.01106402,90383.0,90379.0,0.01106451]
[1765154834851,0.23234713,90382.0,90376.0,0.03008488]
[1765154835053,0.22128853,90380.0,90376.0,0.03008488]
[1765154835252,0.23234713,90382.0,90376.0,0.03008488]
[1765154835453,0.01106414,90382.0,90377.0,0.01106476]
[1765154835661,0.0110639,90384.0,90380.0,0.01106439]
[1765154835835,0.001,90383.0,90380.0,0.01106439]
[1765154836197,0.01703123,90381.0,90380.0,0.01106439]
[1765154836566,0.001,90382.0,90380.0,0.27351228]
[1765154836747,0.001,90382.0,90380.0,0.29144086]
[1765154836952,0.001,90382.0,90381.0,0.04116]
[1765154837379,0.001,90382.0,90381.0,0.05896]
[1765154837910,0.01106378,90385.0,90381.0,0.07002427]
[1765154838456,0.22128055,90383.0,90381.0,0.0178]
[1765154839281,0.22128055,90383.0,90381.0,0.0228]
[1765154839672,0.22128055,90383.0,90381.0,0.0178]
[1765154840565,0.0110639,90384.0,90381.0,0.0178]
[1765154840960,0.0110639,90384.0,90381.0,0.0198]
[1765154841166,0.001,90383.0,90381.0,0.0198]
[1765154841389,0.001,90383.0,90381.0,0.24108476]
[1765154841551,0.01106378,90385.0,90381.0,0.25014903]
[1765154841753,0.01106427,90381.0,90377.0,0.01106476]
[1765154842066,0.01106427,90381.0,90378.0,0.01106463]
[1765154842900,0.0110639,90384.0,90380.0,0.05222439]
[1765154843124,0.001,90385.0,90384.0,0.2212781]
[1765154843325,0.001,90385.0,90384.0,0.2624381]
[1765154843532,0.001,90385.0,90384.0,0.3215281]
[1765154843970,0.01106341,90388.0,90384.0,0.04116]
[1765154844179,0.01106317,90390.0,90387.0,0.01106353]
[1765154844760,0.01106329,90389.0,90385.0,0.01106378]
[1765154845133,0.001,90388.0,90385.0,0.01106378]
[1765154845694,0.01106329,90389.0,90386.0,0.01106366]
[1765154845847,0.01106292,90392.0,90389.0,0.01106329]
[1765154846053,0.01106304,90391.0,90387.0,0.01106353]
[1765154846549,0.04133268,90394.0,90389.0,0.01106329]
[1765154846750,0.04133268,90394.0,90390.0,0.01106317]
[1765154846956,0.0110628,90393.0,90389.0,0.01106329]
[1765154847357,0.01106292,90392.0,90387.0,0.01106353]
[1765154847567,0.23232665,90390.0,90386.0,0.01106366]
[1765154847772,0.004,90389.0,90386.0,0.01106366]
[1765154848190,0.23232665,90390.0,90386.0,0.01106366]
[1765154848712,0.01106329,90389.0,90386.0,0.01106366]
[1765154849431,0.01106329,90389.0,90367.0,0.03409999]
[1765154849432,0.22129775,90376.0,90371.0,0.01106549]
[1765154849574,0.01106451,90379.0,90375.0,0.01752]
[1765154849763,0.01106463,90378.0,90375.0,0.028585]
[1765154850156,0.28294174,90387.0,90378.0,0.23235666]
[1765154850399,0.23831303,90383.0,90379.0,0.01106451]
[1765154850601,0.01703123,90383.0,90379.0,0.03294451]
[1765154851012,0.01703123,90383.0,90380.0,0.22128789]
[1765154851642,0.01803123,90383.0,90380.0,0.22128789]
[1765154851953,0.001,90383.0,90380.0,0.23235228]
[1765154852083,0.23831216,90383.0,90380.0,0.01106439]
[1765154852529,0.23931216,90383.0,90380.0,0.01306439]
[1765154852735,0.01803123,90383.0,90380.0,0.01306439]
[1765154853520,0.02909525,90383.0,90380.0,0.002]
[1765154853711,0.02809525,90383.0,90379.0,0.25423253]
[1765154853933,0.02909525,90383.0,90380.0,0.002]
[1765154854420,0.02809525,90383.0,90379.0,0.25423253]
[1765154854887,0.29813272,90382.0,90380.0,0.002]
[1765154855125,0.02219599,90381.0,90380.0,0.002]
[1765154855321,0.01106598,90367.0,90363.0,0.01106647]
[1765154855478,0.01106586,90368.0,90363.0,0.01106647]
[1765154855797,0.01106549,90371.0,90367.0,0.01106598]
[1765154855942,0.01106561,90370.0,90367.0,0.01106598]
[1765154856496,0.01106574,90369.0,90366.0,0.0110661]
[1765154857297,0.01106574,90369.0,90363.0,0.01106647]
[1765154857298,0.01106598,90367.0,90363.0,0.01106647]
[1765154857448,0.01106623,90365.0,90361.0,0.25408102]
[1765154857846,0.01106623,90365.0,90362.0,0.01106659]
[1765154858486,0.01106635,90364.0,90361.0,0.03274672]
[1765154858702,0.01106635,90364.0,90361.0,0.03474672]
[1765154858925,0.01206623,90365.0,90361.0,0.03474672]
[1765154859902,0.01106623,90365.0,90361.0,0.03274672]
[1765154860106,0.01106635,90364.0,90361.0,0.03274672]
[1765154860286,0.01206635,90364.0,90361.0,0.03474672]
[1765154860912,0.01106635,90364.0,90361.0,0.03274672]
[1765154861528,0.01106635,90364.0,90361.0,0.03474672]
[1765154862129,0.03808,90362.0,90361.0,0.002]
[1765154862586,0.11935599,90362.0,90361.0,0.002]
[1765154863008,0.01106929,90340.0,90336.0,0.01106978]
[1765154863149,0.01914,90339.0,90336.0,0.01146162]
[1765154863350,0.25159787,90339.0,90336.0,0.00039184]
[1765154863967,0.01106941,90339.0,90336.0,0.00039184]
[1765154864168,0.01106941,90339.0,90336.0,0.00239184]
[1765154864388,0.01206929,90340.0,90337.0,0.01106966]
[1765154864596,0.01106929,90340.0,90337.0,0.01106966]
[1765154864752,0.22138108,90342.0,90338.0,0.01106953]
[1765154864966,0.004,90339.0,90337.0,0.01106966]
[1765154866738,0.01106929,90340.0,90337.0,0.01106966]
[1765154866962,0.01506929,90340.0,90337.0,0.01106966]
[1765154867491,0.01106929,90340.0,90337.0,0.01106966]
[1765154867717,0.004,90339.0,90337.0,0.01106966]
[1765154868252,0.01106929,90340.0,90337.0,0.01106966]
[1765154868454,0.01106941,90339.0,90336.0,0.01146162]
[1765154868604,0.001,90340.0,90337.0,0.002]
[1765154868799,0.001,90340.0,90338.0,0.03969]
[1765154869326,0.001,90340.0,90338.0,0.26107877]
[1765154869911,0.001,90340.0,90339.0,0.11327617]
[1765154870107,0.001,90340.0,90339.0,0.09778]
[1765154870258,0.0110688,90344.0,90341.0,0.01106917]
[1765154870463,0.0110688,90344.0,90343.0,0.05749]
[1765154871659,0.0150688,90344.0,90343.0,0.05749]
[1765154871982,0.0110688,90344.0,90343.0,0.05749]
[1765154872332,0.0150688,90344.0,90343.0,0.05749]
[1765154872753,0.0150688,90344.0,90343.0,0.0178]
[1765154873709,0.004,90344.0,90343.0,0.05749]
[1765154874391,0.004,90344.0,90343.0,0.12995938]
[1765154874943,0.032,90344.0,90343.0,0.11758]
[1765154875347,0.032,90344.0,90343.0,0.1351]
[1765154875549,0.032,90344.0,90343.0,0.15178555]
[1765154875760,0.032,90344.0,90343.0,0.1351]
[1765154876308,0.032,90344.0,90343.0,0.17056958]
[1765154876737,0.032,90344.0,90343.0,0.17943785]
[1765154877787,0.01106708,90358.0,90354.0,0.01106757]
[1765154877990,0.01106672,90361.0,90357.0,0.04746]